Workbook

Sheet Steuerung
B2: Maschinenstundensatzrechnung | M2: Ergebnisse der Kostenträgerrechnung
B4: Maschinenstundensatz ohne Beschäftigungsrückgang, | G4: Maschinenstundensatz fix | J4: =Berechnungen!F33 -> 44.03703704 | K4: € | M4: Herstellkosten | N4: =IF(Berechnungen!K31="ohne Verzicht auf Fixkostendeckung",Berechnungen!K21,0) -> 1091.185185
B5: ohne Verzicht auf Deckung der fixen Kosten | G5: Maschinenstundensatz variabel | J5: =Berechnungen!G33 -> 10 | K5: € | M5: Selbstkosten | N5: =IF(Berechnungen!K31="ohne Verzicht auf Fixkostendeckung",Berechnungen!K24,0) -> 1331.245926
B6: und ohne strukturelle Änderungen der Arbeitszeit | G6: Maschinenstundensatz insgesamt | J6: =Berechnungen!C33 -> 54.03703704 | K6: € | M6: Barverkaufspreis | N6: =IF(Berechnungen!K31="ohne Verzicht auf Fixkostendeckung",Berechnungen!K26,0) -> 1397.808222
G7: gesamte jährliche fixe Kosten | J7: =Berechnungen!E31 -> 79266.66667 | K7: € | M7: Nettoverkaufspreis | N7: =IF(Berechnungen!K31="ohne Verzicht auf Fixkostendeckung",Berechnungen!K30,0) -> 1601.154894
G8: gesamte monatliche fixe Kosten | J8: =Berechnungen!F31 -> 6605.555556 | K8: €
B10: Fall 1 | G10: Beschäftigungsrückgang | J10: =Berechnungen!C16 -> 0 | K10: % | M10: Herstellkosten | N10: =Berechnungen!K21 -> 1091.185185
B11: Maschinenstundensatz bei Beschäftigungsrückgang | G11: Verzicht auf Fixkostendeckung | J11: =IF(J10>0,Berechnungen!C17,0) -> 0 | K11: % | M11: Selbstkosten | N11: =Berechnungen!K24 -> 1331.245926
B12: ohne Verzicht auf Fixkostendeckung oder Verzicht auf | G12: Maschinenstundensatz fix | J12: =Berechnungen!F44 -> 0 | K12: € | M12: Barverkaufspreis | N12: =Berechnungen!K26 -> 1397.808222
B13: Deckung fixer Kosten die auf den Beschäftigungsrückgang | G13: Maschinenstundensatz variabel | J13: =Berechnungen!G44 -> 0 | K13: € | M13: Nettoverkaufspreis | N13: =Berechnungen!K30 -> 1601.154894
B14: entfallen. | G14: Maschinenstundensatz insgesamt | J14: =Berechnungen!H44 -> 0 | K14: € | M14: =IF(Berechnungen!K31="ohne Verzicht auf Fixkostendeckung","kein Beschäftigungsrückgang, kein Verzicht auf Fixkostendeckung","") -> kein Beschäftigungsrückgang, kein Verzicht auf Fixkostendeckung
B15: Bei einem Verzicht von 100% bleibt der Maschinenstunden- | G15: jährlich ersetzbare fixe Kosten | J15: =Berechnungen!F46 -> 0 | K15: €
B16: satz ohne Beschäftigungsrückgang erhalten. | G16: jährlich nicht ersetzbare fixe Kosten | J16: =Berechnungen!F48 -> 0 | K16: €
B17: Der Maschinenstundensatz fix und die nicht ersetzbaren | G17: gesamte jährliche fixe Kosten | J17: =Berechnungen!E31 -> 79266.66667 | K17: €
B18: fixen Kosten werden nur von dem Fixkostenanteil | G18: monatlich ersetzbare fixe Kosten | J18: =Berechnungen!F47 -> 0 | K18: €
B19: berechnet, der auf den Beschäftigungsrückgang | G19: monatlich nicht ersetzbare fixe Kosten | J19: =Berechnungen!F49 -> 0 | K19: €
B20: zurückzuführen ist. | G20: gesamte monatliche fixe Kosten | J20: =Berechnungen!F31 -> 6605.555556 | K20: €
B22: Fall 2 | G22: Beschäftigungsrückgang | J22: 0 | K22: % | M22: Herstellkosten | N22: =Berechnungen!L21 -> 1091.185185
G23: Verzicht auf Fixkostendeckung | J23: =IF(Berechnungen!C16>0,0,Berechnungen!C17) -> 0 | K23: % | M23: Selbstkosten | N23: =Berechnungen!L24 -> 1331.245926
B24: Maschinenstundensatz ohne Beschäftigungsrückgang | G24: Maschinenstundensatz fix | J24: =Berechnungen!F57 -> 0 | K24: € | M24: Barverkaufspreis | N24: =Berechnungen!L26 -> 1397.808222
B25: aber mit Verzicht auf Deckung eines Teils der gesamten | G25: Maschinenstundensatz variabel | J25: =Berechnungen!G57 -> 0 | K25: € | M25: Nettoverkaufspreis | N25: =Berechnungen!L30 -> 1601.154894
B26: fixen Kosten. | G26: Maschinenstundensatz insgesamt | J26: =Berechnungen!H57 -> 0 | K26: € | M26: =IF(Berechnungen!K31="ohne Verzicht auf Fixkostendeckung","kein Beschäftigungsrückgang, kein Verzicht auf Fixkostendeckung","") -> kein Beschäftigungsrückgang, kein Verzicht auf Fixkostendeckung
G27: jährlich ersetzbare fixe Kosten | J27: =Berechnungen!F59 -> 0 | K27: €
B28: Der Maschinenstundensatz fix und die nicht ersetzbaren | G28: jährlich nicht ersetzbare fixe Kosten | J28: =Berechnungen!F61 -> 0 | K28: €
B29: fixen Kosten werden von den gesamten fixen Kosten | G29: gesamte jährliche fixe Kosten | J29: =Berechnungen!E31 -> 79266.66667 | K29: €
B30: berechnet. | G30: monatlich ersetzbare fixe Kosten | J30: =Berechnungen!F60 -> 0 | K30: €
G31: monatlich nicht ersetzbare fixe Kosten | J31: =Berechnungen!F62 -> 0 | K31: €
G32: gesamte monatliche fixe Kosten | J32: =Berechnungen!F31 -> 6605.555556 | K32: €
B34: Fall 3 | G34: Beschäftigungsrückgang | J34: =Berechnungen!C16 -> 0 | K34: % | M34: Herstellkosten | N34: =Berechnungen!M21 -> 1091.185185
B35: Maschinenstundensatz bei Beschäftigungsrückgang | G35: Verzicht auf Fixkostendeckung | J35: =IF(J34>0,Berechnungen!C17,0) -> 0 | K35: % | M35: Selbstkosten | N35: =Berechnungen!M24 -> 1331.245926
B36: ohne Verzicht auf Fixkostendeckung oder Verzicht auf | G36: Maschinenstundensatz fix | J36: =Berechnungen!F71 -> 0 | K36: € | M36: Barverkaufspreis | N36: =Berechnungen!M26 -> 1397.808222
B37: Deckung eines Teiles der gesamten fixen Kosten. | G37: Maschinenstundensatz variabel | J37: =Berechnungen!G71 -> 0 | K37: € | M37: Nettoverkaufspreis | N37: =Berechnungen!M30 -> 1601.154894
B38: Bei einem Verzicht auf Fixkostendeckung, der dem | G38: Maschinenstundensatz insgesamt | J38: =Berechnungen!H71 -> 0 | K38: € | M38: =IF(Berechnungen!K31="ohne Verzicht auf Fixkostendeckung","kein Beschäftigungsrückgang, kein Verzicht auf Fixkostendeckung","") -> kein Beschäftigungsrückgang, kein Verzicht auf Fixkostendeckung
B39: Beschäftigungsrückgang entspricht, bleibt der | G39: jährlich ersetzbare fixe Kosten | J39: =Berechnungen!F73 -> 0 | K39: €
B40: der Maschinenstundensatz ohne Beschäftigungsrückgang | G40: jährlich nicht ersetzbare fixe Kosten | J40: =Berechnungen!F75 -> 0 | K40: €
B41: erhalten. | G41: gesamte jährliche fixe Kosten | J41: =Berechnungen!E31 -> 79266.66667 | K41: €
B42: Der Maschinenstundensatz fix und die nicht ersetzbaren | G42: monatlich ersetzbare fixe Kosten | J42: =Berechnungen!F74 -> 0 | K42: €
B43: fixen Kosten werden von den gesamten fixen Kosten | G43: monatlich nicht ersetzbare fixe Kosten | J43: =Berechnungen!F76 -> 0 | K43: €
B44: berechnet. | G44: gesamte monatliche fixe Kosten | J44: =Berechnungen!F31 -> 6605.555556 | K44: €
B46: Fall 4 | G46: neue monatliche Arbeitszeit | J46: =Berechnungen!H17 -> 0 | K46: h | M46: Herstellkosten | N46: =Berechnungen!N21 -> 0
B47: Strukturelle Arbeitszeitänderungen | G47: Verzicht auf Fixkostendeckung | J47: =Berechnungen!C87 -> 0 | K47: % | M47: Selbstkosten | N47: =Berechnungen!N24 -> 0
B48: ohne Verzicht auf Fixkostendeckung oder Verzicht auf | G48: Maschinenstundensatz fix | J48: =Berechnungen!F85 ->  | K48: € | M48: Barverkaufspreis | N48: =Berechnungen!N26 -> 0
B49: Deckung eines Teiles der gesamten fixen Kosten. | G49: Maschinenstundensatz variabel | J49: =Berechnungen!G85 ->  | K49: € | M49: Nettoverkaufspreis | N49: =Berechnungen!N30 -> 0
G50: Maschinenstundensatz insgesamt | J50: =Berechnungen!H85 ->  | K50: € | M50: =IF(Berechnungen!H17>0,IF(Berechnungen!C87=0,"Arbeitszeitveränderungen ohne Verzicht auf Fixkostendeckung","Arbeitszeitveränderung mit Verzicht auf Fixkostendeckung"),"keine Arbeitszeitänderung") -> keine Arbeitszeitänderung
B51: Änderungen der Arbeitszeit führen zu einer Änderung des | G51: jährlich ersetzbare fixe Kosten | J51: =Berechnungen!F87 ->  | K51: €
B52: fixen Maschinenstundensatzes. Der variable Maschinen- | G52: jährlich nicht ersetzbare fixe Kosten | J52: =Berechnungen!F89 ->  | K52: €
B53: stundensatz bleibt unverändert. | G53: gesamte jährliche fixe Kosten | J53: =Berechnungen!C86 ->  | K53: €
B54: Der Maschinenstundensatz fix und die nicht ersetzbaren | G54: monatlich ersetzbare fixe Kosten | J54: =Berechnungen!F88 ->  | K54: €
B55: fixen Kosten werden von den gesamten fixen Kosten | G55: monatlich nicht ersetzbare fixe Kosten | J55: =Berechnungen!F90 ->  | K55: €
B56: berechnet. | G56: gesamte monatliche fixe Kosten | J56: =IF(Berechnungen!H17>0,J54+J55,"") ->  | K56: €

Sheet Berechnungen
B2: Maschinenstundensatzrechnung | F2: Legende | G2: Eingabefeld | H2: berechnetes Feld | J2: Kostenträgerrechnung
B3: (eine Fertigungsmaschine)
F4: Jahreswerte | G4: Monatswerte | H4: Fixkostenanteil | J4: Fertiungsmaterial | K4: 500
D5: maschinenabhängige Kosten | F5: (alternative Eingabe) | H5: in Prozent | J5: Materialgemeinkostenzuschlagssatz in % | K5: 12
B6: Maschinenanschaffungswert (€) | C6: 320000 | D6: Engergiegrundgebühr | G6: 50 | H6: 100 | J6: Fertigungsstunden | K6: 5
B7: Nutzungsdauer (Jahre) | C7: 12 | D7: Platzkosten je m2 | G7: 120 | H7: 100 | J7: Lohnsatz je Stunde | K7: 22.5
B8: Wiederbeschaffunswert (€) | C8: 344000 | D8: Wartungskosten | F8: 12000 | H8: 70 | J8: Verwaltungsgemeinkostenzuschlagssatz in % | K8: 10
B9: Maschinenleistung (kW) | C9: 50 | D9: Werkzeugkosten | G9: 600 | H9: 100 | J9: Vertriebsgemeinkostenzuschlagssatz in % | K9: 12
B10: Kalkulatorischer Zinssatz (%) | C10: 8 | D10: Betriebsstoffkosten | H10: 100 | J10: Gewinnzuschlag in % | K10: 5
B11: Energiepreis (€/kW) | C11: 0.16 | D11: sonst. maschinenabhängige Kosten | H11: 100 | J11: Kundenskonto in % | K11: 3
B12: Platzbedarf (m2) | C12: 15 | J12: Kundenrabatt in % | K12: 10
B13: jährliche Laufstunden | C13: 1800 | D13: lohnabhängige Kosten | K13: Fall 1 | L13: Fall 2 | M13: Fall 3 | N13: Fall 4
B14: (alternativ) monatliche Laufstunden | C14: 0 | D14: Fertigungslöhne | F14: 10000 | H14: Fall 4 | J14: Fertigungsmaterial | K14: =IF(H17>0,0,IF(OR(H44>0,AND(H57=0,H71=0)),$K$4,0)) -> 500 | L14: =IF(H17>0,0,IF(OR(H57>0,AND(H44=0,H71=0)),$K$4,0)) -> 500 | M14: =IF(H17>0,0,IF(OR(H71>0,AND(H44=0,H57=0)),$K$4,0)) -> 500 | N14: =IF(H17>0,$K$4,0) -> 0
D15: Hilfslöhne | F15: 1000 | H15: neue monatliche | J15: Materialgemeinkosten | K15: =$K$14*$K$5/100 -> 60 | L15: =$L$14*$K$5/100 -> 60 | M15: =$M$14*$K$5/100 -> 60 | N15: =IF(H17>0,$N$14*$K$5/100,0) -> 0
B16: Beschäftigungsrückgang in % | C16: 0 | D16: Soziale Abgaben | F16: 5000 | H16: Arbeitszeit | J16: Materialkosten | K16: =K14+K15 -> 560 | L16: =L14+L15 -> 560 | M16: =M14+M15 -> 560 | N16: =N14+N15 -> 0
B17: Verzicht auf Fixkostendeckung in % | C17: 0 | D17: sonstige lohnabhängige Kosten | G17: 600 | H17: 0 | J17: Fertigungslöhne | K17: =IF(H17>0,0,IF(OR(H44>0,AND(H57=0,H71=0)),$K$6*$K$7,0)) -> 112.5 | L17: =IF(H17>0,0,IF(OR(H57>0,AND(H44=0,H71=0)),$K$6*$K$7,0)) -> 112.5 | M17: =IF(H17>0,0,IF(OR(H71>0,AND(H44=0,H57=0)),$K$6*$K$7,0)) -> 112.5 | N17: =IF(H17>0,$K$6*$K$7,0) -> 0
D18: lohnabhängige Gemeinkosten | F18: =SUM(F15:F17) -> 6000 | G18: =SUM(G15:G17) -> 600 | H18: Stunden | J18: maschinenabhängige Fertiungsgemeinkosten | K18: =IF(H17>0,0,IF(OR(H44>0,AND(H57=0,H71=0)),K32*$K$6,0)) -> 270.1851852 | L18: =L32*$K$6 -> 270.1851852 | M18: =M32*$K$6 -> 270.1851852 | N18: =N32*$K$6 -> 0
J19: Restgemeinkosten | K19: =$K$17*$C$36 -> 148.5 | L19: =$L$17*$C$36 -> 148.5 | M19: =K19 -> 148.5 | N19: =IF(H17>0,N17*C36,0) -> 0
E20: Fixkostenanteil | G20: variabler Kostenanteil | J20: Fertigungskosten | K20: =K17+K18+K19 -> 531.1851852 | L20: =L17+L18+L19 -> 531.1851852 | M20: =M17+M18+M19 -> 531.1851852 | N20: =N17+N18+N19 -> 0
B21: Maschinenabhängige Fertigungskosten | C21: Jahreswerte | D21: Monatswerte | E21: Jahreswerte | F21: Monatswerte | G21: Jahreswerte | H21: Monatswerte | J21: Herstellkosten | K21: =K16+K20 -> 1091.185185 | L21: =L16+L20 -> 1091.185185 | M21: =M16+M20 -> 1091.185185 | N21: =N16+N20 -> 0
B22: Kalkulatorische Abschreibung | C22: =C8/C7 -> 28666.66667 | D22: =C22/12 -> 2388.888889 | E22: =C22 -> 28666.66667 | F22: =D22 -> 2388.888889 | G22: =C22-E22 -> 0 | H22: =D22-F22 -> 0 | J22: Verwaltungsgemeinkosten | K22: =$K$21*$K$8/100 -> 109.1185185 | L22: =$L$21*$K$8/100 -> 109.1185185 | M22: =$M$21*$K$8/100 -> 109.1185185 | N22: =IF(H17>0,$N$21*$K$8/100,0) -> 0
B23: Kalkulatorische Zinsen | C23: =(C6*C10/100)/2 -> 12800 | D23: =C23/12 -> 1066.666667 | E23: =C23 -> 12800 | F23: =D23 -> 1066.666667 | G23: 0 | H23: 0 | J23: Vertriebsgemeinkosten | K23: =$K$21*$K$9/100 -> 130.9422222 | L23: =$L$21*$K$9/100 -> 130.9422222 | M23: =$M$21*$K$9/100 -> 130.9422222 | N23: =IF(H17>0,$N$21*$K$9/100,0) -> 0
B24: Energiekosten | C24: =IF(C13>0,C9*C13*C11,C9*C14*C11*12) -> 14400 | D24: =C24/12 -> 1200 | E24: 0 | F24: 0 | G24: 14400 | H24: 1200 | J24: Selbstkosten | K24: =K21+K22+K23 -> 1331.245926 | L24: =L21+L22+L23 -> 1331.245926 | M24: =M21+M22+M23 -> 1331.245926 | N24: =N21+N22+N23 -> 0
B25: Grundgebühr für Energiebereitstellung | C25: =IF(F6>0,F6,G6*12) -> 600 | D25: =IF(G6>0,G6,C25/12) -> 50 | E25: =C25 -> 600 | F25: =D25*H6/100 -> 50 | G25: 0 | H25: 0 | J25: Gewinnzuschlag | K25: =K24*K10/100 -> 66.5622963 | L25: =L24*K10/100 -> 66.5622963 | M25: =M24*K10/100 -> 66.5622963 | N25: =N24*K10/100 -> 0
B26: Platzkosten | C26: =IF(F7>0,F7*C12,G7*C12*12) -> 21600 | D26: =IF(G7>0,G7*C12,C26/12) -> 1800 | E26: =C26*H7/100 -> 21600 | F26: 1800 | G26: 0 | H26: 0 | J26: Barverkaufspreis | K26: =K24+K25 -> 1397.808222 | L26: =L24+L25 -> 1397.808222 | M26: =M24+M25 -> 1397.808222 | N26: =N24+N25 -> 0
B27: =D8 -> Wartungskosten | C27: =IF(F8>0,F8,G8*12) -> 12000 | D27: =IF(G8>0,G8,F8/12) -> 1000 | E27: =C27*H8/100 -> 8400 | F27: 700 | G27: =C27-E27 -> 3600 | H27: 300 | J27: Kundenskonto | K27: =K26*K11/(100-K11) -> 43.23118213 | L27: =L26*K11/(100-K11) -> 43.23118213 | M27: =M26*K11/(100-K11) -> 43.23118213 | N27: =N26*K11/(100-K11) -> 0
B28: =D9 -> Werkzeugkosten | C28: =IF(F9>0,F9,G9*12) -> 7200 | D28: =IF(G9>0,G9,F9/12) -> 600 | E28: =C28*H9/100 -> 7200 | F28: 600 | G28: 0 | H28: 0 | J28: Zielverkaufspreis | K28: =K26+K27 -> 1441.039404 | L28: =L26+L27 -> 1441.039404 | M28: =M26+M27 -> 1441.039404 | N28: =N26+N27 -> 0
B29: =D10 -> Betriebsstoffkosten | C29: =IF(F10>0,F10,G10*12) -> 0 | D29: =IF(G10>0,G10,F10/12) -> 0 | E29: =C29*H10/100 -> 0 | F29: 0 | G29: 0 | H29: 0 | J29: Kundenrabatt | K29: =K28*K12/(100-K12) -> 160.1154894 | L29: =L28*K12/(100-K12) -> 160.1154894 | M29: =M28*K12/(100-K12) -> 160.1154894 | N29: =N28*K12/(100-K12) -> 0
B30: =D11 -> sonst. maschinenabhängige Kosten | C30: =IF(F11>0,F11,G11*12) -> 0 | D30: =IF(G11>0,G11,F11/12) -> 0 | E30: =C30*H11/100 -> 0 | F30: 0 | G30: 0 | H30: 0 | J30: Nettoverkaufspreis | K30: =K28+K29 -> 1601.154894 | L30: =L28+L29 -> 1601.154894 | M30: =M28+M29 -> 1601.154894 | N30: =N28+N29 -> 0
B31: Gesamtkosten | C31: =SUM(C22:C30) -> 97266.66667 | D31: 8105.555556 | E31: 79266.66667 | F31: 6605.555556 | G31: 18000 | H31: 1500 | K31: =IF(AND(H44=0,H57=0,H71=0),"ohne Verzicht auf Fixkostendeckung","") -> ohne Verzicht auf Fixkostendeckung
J32: Maschinenstundensatz | K32: =IF(H17>0,0,IF(AND(C16=0,C17=0),C33,H44)) -> 54.03703704 | L32: =IF(H17>0,0,IF(AND(C16=0,C17=0),C33,H57)) -> 54.03703704 | M32: =IF(H17>0,0,IF(AND(C16=0,C17=0),C33,H71)) -> 54.03703704 | N32: =IF(H17>0,H85,0) -> 0
B33: Maschinenstundensatz | C33: =IF($C$13>0,C31/$C$13,(D31/$C$14)) -> 54.03703704 | D33: =IF($C$14>0,D31/$C$14,(C31/$C$13)) -> 54.03703704 | E33: =IF($C$13>0,E31/$C$13,(F31/$C$14)) -> 44.03703704 | F33: =IF($C$14>0,F31/$C$14,(E31/$C$13)) -> 44.03703704 | G33: =IF($C$13>0,G31/$C$13,(H31/$C$14)) -> 10 | H33: =IF($C$14>0,H31/$C$14,(G31/$C$13)) -> 10 | J33: Verzicht auf Fixkostendeckung | K33: =IF(H17>0,C87/100,C17/100) -> 0
B35: Restgemeinkosten | C35: =F18+(G18*12) -> 13200 | D35: =G18+(F18/12) -> 1100 | F35: Maschinen- platzkosten | G35: Jahreswerte | H35: Monatswerte
B36: Restgemeinkostenzuschlagssatz (%) | C36: =C35/(F14+(G14*12)) -> 1.32 | D36: =D35/(G14+(F14/12)) -> 1.32 | G36: =C35+C31 -> 110466.6667 | H36: =D31+D35 -> 9205.555556
J38: Mit der Zielwertsuche von Excel kann bei einem Beschäftigungsrückgang der Maschinenstundensatz und der damit verbundene Verzicht auf Fixkostendeckung berechnet werden, wenn eine bestimmter Nettoverkaufspreis eingehalten werden soll. (Daten - Was-wäre-wenn-Analyse - Zielwertsuche) Zielzelle: K30 (bzw. M30) Zielwert: einzuhaltender Nettoverkaufspreis veränderbare Zelle: C17 Maschinenstundensatz und Verzicht auf Fixkostendeckung werden dann in Prozent ausgewiesen.
B39: Maschinenstundensatz bei Beschäftigungsrückgang | E39: Fall 1 | F39: =IF(C16=0,"trifft nicht zu, kein Beschäftigungsrückgang",IF(C17=100,"Maschinenstundensatz unverändert; Verzicht auf Deckung der gesamten Fixkosten des Beschäftigungsrückganges","veränderter Maschinenstundensatz wegen Beschäftigungsrückgang; anteiliger Verzicht auf Fixkosten des Beschäftigungsrückganges")) -> trifft nicht zu, kein Beschäftigungsrückgang
B40: (ohne und mit Verzicht auf Deckung der Fixkosten des Beschäftigungsrückganges)
B41: (der Verzicht auf Fixkostendeckung bezieht sich nur auf den Anteil des Beschäftigungsrückganges.)
B43: Beschäftigungsrückgang in % | C43: =C16 -> 0 | D43: Maschinenstundensatz | F43: fix | G43: variabel | H43: insgesamt
B44: Laufzeitreduzierung | C44: =IF(C13>0,C13*(C43/100),(C14*12)*(C43/100)) -> 0 | D44: bei Beschäftigungsrückgang | F44: =IF(C16>0,IF(C13>0,(E31-C48)/C45,((F31*12)-C48)/((C14*12)-C44)),0) -> 0 | G44: =IF(C16>0,G33,0) -> 0 | H44: =F44+G44 -> 0
B45: verbleibende Maschinenlaufzeit | C45: =IF(C13>0,C13-C44,(C14*12)-C44) -> 1800 | G45: Die ersetzbaren und nicht ersetzbaren fixen Kosten werden vom Anteil des Beschäftigungsrückganges berechnet.
B46: Verzicht auf Fixkostendeckung der Laufzeitreduzierung in Prozent | C46: =IF(C16>0,C17,0) -> 0 | D46: Jährlich ersetzbare Fixkosten | F46: =IF(C16>0,E31-C48,0) -> 0
D47: Monatlich ersetzbare Fixkosten | F47: =F46/12 -> 0
B48: Verzicht auf Fixkostendeckung der Laufzeitreduzierung in € | C48: =IF(C16>0,(E31-(E31*(100%-C16%)))*C17%,0) -> 0 | D48: Jährlich nicht ersetzbar | F48: =IF(C16=0,0,E31-F46) -> 0
D49: Monatlich nicht ersetzbar | F49: =IF(C16=0,0,F31-F47) -> 0
B53: Maschinenstundensatz mit Verzicht auf Fixkostendeckung | E53: Fall 2 | F53: =IF(C17=0,"trifft nicht zu, kein Verzicht auf Fixkostendeckung","veränderter Maschinenstundensatz wegen Verzicht auf Fixkostendeckung") -> trifft nicht zu, kein Verzicht auf Fixkostendeckung
B54: ohne Beschäftigungsrückgang
B55: (der Verzicht auf Fixkostendeckung bezieht sich auf die gesamten Fixkosten)
D56: Maschinenstundensatz; Verzicht auf Fixkkostendeckung; keine Beschäftigungsänderung | F56: fix | G56: variabel | H56: insgesamt
B57: Jährliche Laufstunden | C57: =IF(C13>0,C13,C14*12) -> 1800 | F57: =IF(AND(C16=0,C17>0),E33*((100-C17)/100),0) -> 0 | G57: =IF(C16>0,0,IF(AND(C16=0,C17>0),G33,0)) -> 0 | H57: =F57+G57 -> 0
B58: monatliche Laufstunden | C58: =IF(C14>0,C14,C13/12) -> 150 | G58: Der Anteil der ersetzbaren und nicht ersetzbaren fixen Kosten wird von den gesamten fixen Kosten berechnet.
D59: Jährlich ersetzbare Fixkosten | F59: =IF(AND(C16=0,C17>0),C57*F57,0) -> 0
D60: Monatlich ersetzbare Fixkosten | F60: =F59/12 -> 0
D61: Jährlich nicht ersetzbar | F61: =IF(AND(C16=0,C17>0),E31-F59,0) -> 0
D62: Monatlich nicht ersetzbar | F62: =F61/12 -> 0
B66: Maschinenstundensatz bei Beschäftigungsrückgang | E66: Fall 3 | F66: =IF(C70=0,"trifft nicht zu, kein Beschäftigungsrückgang",IF(C17=100,"Verzicht auf Deckung der gesamten Fixkosten","veränderter Maschinenstundensatz wegen Beschäftigungsrückgang und Verzicht auf Deckung eines Anteils der gesamten Fixkosten")) -> trifft nicht zu, kein Beschäftigungsrückgang
B67: (ohne und mit Verzicht auf Deckung eines Anteils der gesamten Fixkosten)
B68: (der Verzicht auf Fixkostendeckung bezieht sich auf die gesamten Fixkosten.)
B70: Beschäftigungsrückgang in % | C70: =C16 -> 0 | D70: Maschinenstundensatz | F70: fix | G70: variabel | H70: insgesamt
B71: Laufzeitreduzierung | C71: =IF(C13>0,C13*(C43/100),(C14*12)*(C43/100)) -> 0 | D71: bei Beschäftigungsrückgang | F71: =IF(C16>0,IF(C13>0,(E31-C75)/C72,((F31*12)-C75)/((C14*12)-C71)),0) -> 0 | G71: =IF(C16>0,G33,0) -> 0 | H71: =F71+G71 -> 0
B72: verbleibende Maschinenlaufzeit | C72: =IF(C13>0,C13-C71,(C14*12)-C71) -> 1800 | G72: Die ersetzbaren und nicht ersetzbaren fixen Kosten werden vom Anteil des Beschäftigungsrückganges berechnet.
B73: Verzicht auf Fixkostendeckung der Laufzeitreduzierung in Prozent | C73: =IF(C16>0,C17,0) -> 0 | D73: Jährlich ersetzbare Fixkosten | F73: =IF(C16>0,E31-C75,0) -> 0
D74: Monatlich ersetzbare Fixkosten | F74: =F73/12 -> 0
B75: Verzicht auf Fixkostendeckung der Laufzeitreduzierung in € | C75: =IF(AND(C16>0,C17>0),E31*C17%,0) -> 0 | D75: Jährlich nicht ersetzbar | F75: =IF(C16=0,0,E31-F73) -> 0
D76: Monatlich nicht ersetzbar | F76: =IF(C16=0,0,F31-F74) -> 0
B80: Strukturelle Arbeitszeitänderungen | E80: Fall 4 | F80: =IF(H17=0,"trifft nicht zu, keine strukturelle Arbeitszeiterhöhung",IF(C87>0,"strukturelle Arbeitszeiterhöhung und Verzicht auf Fixkkostendeckung","strukturelle Arbeitszeiterhöhung; kein Verzicht auf Fixkostendeckung")) -> trifft nicht zu, keine strukturelle Arbeitszeiterhöhung
B81: (die Arbeitszeit wird aufgrund von strukturellen Maßnahmen geändert)
B82: (Änderung der gesetzlichen oder vertraglichen Wochenarbeitszeit, Einführung der Schichtarbeit, … )
B84: neue Arbeitszeit | C84: =IF(H17>0,H17,"") ->  | D84: Maschinenstundensatz | F84: fix | G84: variabel | H84: insgesamt
B85: neue jährliche variable Kosten | C85: =IF(H17>9,IF(C14>0,(G31/(C14*12))*(H17*12),(G31/C13)*(H17*12)),"") ->  | D85: bei Arbeitszeitänderung | F85: =IF(H17>0,F87/(H17*12),"") ->  | G85: =IF(H17>0,C85/(H17*12),"") ->  | H85: =IF(H17>0,F85+G85,"") -> 
B86: jährliche Fixkosten | C86: =IF(H17>0,E31,"") ->  | G86: Die ersetzbaren und nicht ersetzbaren fixen Kosten werden von den gesamten Fixkosten berechnet.
B87: Verzicht auf Fixkostendeckung in % | C87: 0 | D87: Jährlich ersetzbare Fixkosten | F87: =IF(H17>0,IF(C87>0,(C86-(C86*C87/100)),C86),"") -> 
B88: Strukturelle Arbeitszeitänderungen können zu Änderungen der gesamten fixen und variablen Kosten haben. In diesem Fall sind die Ausgangsdaten zu ändern. | D88: Monatlich ersetzbare Fixkosten | F88: =IF(H17>0,F87/12,"") -> 
D89: Jährlich nicht ersetzbar | F89: =IF(H17>0,C86-F87,"") -> 
D90: Monatlich nicht ersetzbar | F90: =IF(H17>0,(C86/12)-F88,"") -> 

Sheet Tabelle3
